bitfinex/quotes_BTCUSD_20220101
["timestamp","ask_amount","ask_price","bid_price","bid_amount"]
[1641012061641,0.06474845,46713.0,46703.0,0.5049]
[1641012061841,0.06474845,46713.0,46703.0,0.5]
[1641012062042,0.32508652,46711.0,46703.0,0.5]
[1641012062242,0.28071121,46710.0,46703.0,0.5]
[1641012062444,0.32508652,46711.0,46704.0,0.338023]
[1641012062647,0.59199335,46711.0,46704.0,0.338023]
[1641012062843,0.59199335,46711.0,46702.0,0.56397519]
[1641012063044,0.32508652,46711.0,46702.0,0.66397519]
[1641012063243,0.0608372,46710.0,46702.0,0.66397519]
[1641012063445,0.0608372,46710.0,46704.0,0.05353]
[1641012063848,0.3310972,46710.0,46702.0,0.66397519]
[1641012064046,0.0608372,46710.0,46703.0,0.338023]
[1641012064446,0.32508652,46711.0,46703.0,0.338023]
[1641012064648,0.85170225,46710.0,46703.0,0.338023]
[1641012064847,0.85170225,46710.0,46702.0,0.66397519]
[1641012065890,0.85170225,46710.0,46703.0,0.053531]
[1641012066893,0.01861,46714.0,46704.0,0.29527867]
[1641012067092,0.01861,46714.0,46705.0,0.338023]
[1641012067292,0.01861,46714.0,46709.0,0.053524]
[1641012067898,0.01861,46714.0,46710.0,0.30325167]
[1641012068294,0.01861,46714.0,46710.0,0.35677467]
[1641012068494,0.01861,46714.0,46710.0,0.30325167]
[1641012068694,0.01861,46714.0,46705.0,0.05]
[1641012068949,0.01861,46714.0,46704.0,0.49527867]
[1641012069143,0.01861,46714.0,46705.0,0.338023]
[1641012069345,0.01861,46714.0,46705.0,0.1]
[1641012069543,0.01861,46714.0,46712.0,0.35700539]
[1641012069743,0.01861,46714.0,46709.0,0.31513262]
[1641012071148,0.01861,46714.0,46710.0,0.38228477]
[1641012072350,0.01861,46714.0,46710.0,0.58228477]
[1641012074304,0.01861,46714.0,46711.0,0.053521]
[1641012074902,0.01,46714.0,46711.0,0.053521]
[1641012077047,0.01,46714.0,46711.0,0.32883035]
[1641012077446,0.01861,46714.0,46712.0,0.053517]
[1641012078946,0.01861,46714.0,46713.0,0.338023]
[1641012079146,0.01861,46714.0,46713.0,0.438023]
[1641012079345,0.01861,46714.0,46713.0,0.92717712]
[1641012079749,0.01861,46714.0,46713.0,1.02417592]
[1641012079945,0.01861,46714.0,46713.0,0.92717712]
[1641012080807,0.01861,46714.0,46713.0,0.64632675]
[1641012081402,0.01861,46714.0,46713.0,0.92411124]
[1641012087695,0.01,46714.0,46713.0,0.64632675]
[1641012088699,0.01,46714.0,46713.0,0.92525868]
[1641012089297,0.018609,46714.0,46713.0,0.92525868]
[1641012104002,0.018609,46714.0,46713.0,0.64632675]
[1641012104602,0.0119382,46719.0,46717.0,1.136]
[1641012104801,0.0119382,46719.0,46718.0,0.69281922]
[1641012105000,0.0119382,46719.0,46718.0,0.43927448]
[1641012105200,0.0119382,46719.0,46718.0,0.53927448]
[1641012105401,0.002,46729.0,46718.0,0.53927448]
[1641012105402,0.002,46729.0,46719.0,1.15]
[1641012105602,0.00685381,46737.0,46734.0,0.44072068]
[1641012105803,0.00685381,46737.0,46734.0,0.45589068]
[1641012106203,0.002,46739.0,46734.0,0.11517]
[1641012106455,1.29458863,46743.0,46734.0,0.11517]
[1641012106754,0.1071693,46738.0,46734.0,0.1]
[1641012107048,0.32214549,46743.0,46734.0,0.1]
[1641012107249,0.02949925,46741.0,46734.0,0.43380304]
[1641012107548,0.02949925,46741.0,46731.0,0.053498]
[1641012108150,0.02949925,46741.0,46728.0,0.48031924]
[1641012108552,0.02949925,46741.0,46731.0,0.053499]
[1641012108749,0.02949925,46741.0,46731.0,0.50790841]
[1641012108949,0.02949925,46741.0,46732.0,0.05]
[1641012109951,0.02949925,46741.0,46732.0,0.103498]
[1641012110604,0.37564449,46743.0,46732.0,0.103498]
[1641012111408,0.97204223,46742.0,46732.0,0.05]
[1641012111608,1.02554223,46742.0,46732.0,0.05]
[1641012111911,0.0535,46742.0,46732.0,0.05]
[1641012112109,0.0485,46742.0,46732.0,0.05]
[1641012112310,0.00801769,46739.0,46732.0,0.05]
[1641012115451,0.0535,46740.0,46732.0,0.05]
[1641012115653,0.0535,46740.0,46733.0,0.30354474]
[1641012115854,0.01,46744.0,46738.0,0.00125342]
[1641012116057,0.1071693,46739.0,46738.0,0.00125342]
[1641012116554,0.1071693,46739.0,46738.0,0.33927642]
[1641012116754,0.1071693,46739.0,46738.0,0.338023]
[1641012118214,0.1071693,46739.0,46737.0,0.29843859]
[1641012118418,0.00801795,46741.0,46737.0,0.29843859]
[1641012118419,0.1071693,46738.0,46737.0,0.29843859]
[1641012118615,0.1071693,46738.0,46737.0,0.63646159]
[1641012120620,0.1071693,46738.0,46737.0,0.73646159]
[1641012123459,1.1071693,46738.0,46737.0,0.73646159]
[1641012123659,1.1071693,46738.0,46737.0,0.39843859]
[1641012123859,1.1071693,46738.0,46737.0,0.29843859]
[1641012133106,1.0,46738.0,46737.0,0.2996575]
[1641012133309,1.0,46738.0,46737.0,0.67311632]
[1641012133506,1.0,46738.0,46737.0,0.3996575]
[1641012133707,1.0,46738.0,46737.0,0.4996575]
[1641012134507,1.0,46738.0,46737.0,0.6066265]
[1641012134707,1.0,46738.0,46737.0,0.9446495]
[1641012137955,1.0,46738.0,46737.0,0.73646159]
[1641012138155,1.0,46738.0,46728.0,0.00125827]
[1641012138356,1.0,46738.0,46725.0,0.60089715]
[1641012138553,1.0,46738.0,46726.0,0.338023]
[1641012139156,1.0,46738.0,46735.0,0.34159156]
[1641012141316,1.0,46738.0,46736.0,0.00123661]
[1641012141519,1.0,46738.0,46737.0,0.09718305]
[1641012141714,1.0,46738.0,46737.0,0.43520605]
[1641012141915,1.0,46738.0,46737.0,0.53520605]
[1641012142114,1.0,46738.0,46737.0,0.63520605]
[1641012142714,1.0,46738.0,46737.0,0.63639964]
[1641012143515,1.0,46738.0,46737.0,0.9158662]
[1641012144153,1.0,46738.0,46737.0,0.54049677]
[1641012144952,1.0,46738.0,46737.0,0.64353231]
[1641012145154,1.0,46738.0,46737.0,0.92368774]
[1641012145456,1.0,46738.0,46737.0,1.9566522]
[1641012146753,1.0,46738.0,46737.0,0.54049677]
[1641012146954,1.0,46738.0,46737.0,0.53921659]
[1641012147155,1.0,46738.0,46737.0,0.81516814]
[1641012147354,1.0,46738.0,46737.0,0.53921659]
[1641012147555,1.0,46738.0,46737.0,0.81680026]
[1641012147997,1.0,46738.0,46737.0,1.95402775]
[1641012148395,1.0,46738.0,46737.0,0.81802775]
[1641012152350,1.0,46738.0,46737.0,0.54044408]
[1641012153552,1.0,46738.0,46737.0,0.8266899]
[1641012153751,1.0,46738.0,46737.0,1.9626899]
[1641012153953,1.0,46738.0,46737.0,0.8266899]
[1641012154552,1.0,46738.0,46737.0,1.9626899]
[1641012154553,1.00861,46738.0,46737.0,1.9626899]
[1641012154752,1.00861,46738.0,46737.0,0.8266899]
[1641012155211,1.00861,46738.0,46737.0,0.54044408]
[1641012159754,1.00861,46738.0,46737.0,0.83971618]
[1641012160855,1.00861,46738.0,46737.0,1.97571618]
[1641012162055,1.00861,46738.0,46737.0,0.83971618]
[1641012162456,1.00861,46738.0,46737.0,0.54044408]
[1641012162907,1.00861,46738.0,46737.0,0.53921659]
[1641012163611,1.00861,46738.0,46737.0,0.8198481]
[1641012164310,1.00861,46738.0,46737.0,0.53921659]
[1641012165809,1.00861,46738.0,46737.0,1.95021048]
[1641012166012,1.00861,46738.0,46737.0,0.81421048]
[1641012167079,1.00861,46738.0,46737.0,1.95021048]
[1641012168476,1.00861,46738.0,46737.0,1.67521659]
[1641012168879,1.00861,46738.0,46737.0,0.53921659]
[1641012169476,1.00861,46738.0,46737.0,1.67521659]
[1641012170304,1.00861,46738.0,46737.0,0.53921659]
[1641012171909,1.00861,46738.0,46737.0,1.67521659]
[1641012172509,1.00861,46738.0,46737.0,0.53921659]
[1641012174154,1.00861,46738.0,46737.0,0.81621596]
[1641012175352,1.00861,46738.0,46737.0,1.95221596]
[1641012176553,1.00861,46738.0,46737.0,0.53921659]
[1641012177708,1.00861,46738.0,46737.0,1.67521659]
[1641012180312,1.00861,46738.0,46737.0,0.53921659]
[1641012200598,1.00861,46738.0,46737.0,0.63637571]
[1641012201100,1.00861,46738.0,46737.0,0.53921659]
[1641012202097,1.02887097,46738.0,46737.0,0.53921659]
[1641012203099,1.04745005,46738.0,46737.0,0.6327081]
[1641012203300,1.02718908,46738.0,46737.0,0.6327081]
[1641012203700,1.02718908,46738.0,46737.0,0.53921659]
[1641012203956,1.0262199,46738.0,46737.0,0.53921659]
[1641012204350,1.0262199,46738.0,46737.0,0.63637757]
[1641012204550,1.0458991,46738.0,46737.0,0.63637757]
[1641012204753,1.02732002,46738.0,46737.0,0.53921659]
[1641012205152,1.04834915,46738.0,46737.0,0.53921659]
[1641012205352,1.00764082,46738.0,46737.0,0.63741413]
[1641012206152,1.02707907,46738.0,46737.0,0.63741413]
[1641012207154,1.047676,46738.0,46737.0,0.63741413]
[1641012208200,1.047676,46738.0,46737.0,0.74438013]
[1641012208797,1.02910151,46738.0,46737.0,0.74438013]
[1641012209198,1.02733699,46738.0,46737.0,0.74438013]
[1641012210099,1.04724162,46738.0,46737.0,0.74438013]
[1641012210300,1.02754545,46738.0,46737.0,0.74438013]
[1641012211100,1.04855423,46738.0,46737.0,0.74438013]
[1641012212150,1.06727486,46738.0,46737.0,0.74438013]
[1641012212350,1.02636145,46738.0,46737.0,0.74438013]
[1641012213153,1.0447888,46738.0,46737.0,0.74438013]
[1641012213351,1.02606817,46738.0,46737.0,0.74438013]
[1641012214250,1.02716966,46738.0,46737.0,0.74438013]
[1641012214651,1.02716966,46738.0,46737.0,0.64618259]
[1641012215316,1.04821711,46738.0,46737.0,0.74342036]
[1641012215815,1.04821711,46738.0,46737.0,0.64618259]
[1641012216214,1.06822404,46738.0,46737.0,0.64618259]
[1641012216415,1.02764775,46738.0,46737.0,0.64618259]
[1641012217115,1.0460359,46738.0,46737.0,0.64618259]
[1641012217316,1.02602897,46738.0,46737.0,0.64618259]
[1641012218117,1.04699605,46738.0,46737.0,0.64618259]
[1641012218316,1.0286079,46738.0,46737.0,0.64618259]
[1641012219258,1.04878047,46738.0,46737.0,0.64618259]
[1641012219460,1.02781339,46738.0,46737.0,0.64618259]
[1641012220158,1.04780951,46738.0,46737.0,0.64618259]
[1641012220361,1.02763694,46738.0,46737.0,0.64618259]
[1641012221163,1.04904747,46738.0,46737.0,0.64618259]
[1641012221357,1.02905135,46738.0,46737.0,0.64618259]
[1641012222158,1.0503243,46738.0,46737.0,0.64618259]
[1641012222559,1.02891377,46738.0,46737.0,0.64618259]
[1641012223213,1.04865303,46738.0,46737.0,0.64618259]
[1641012223416,1.02738008,46738.0,46737.0,0.64618259]
[1641012224213,1.04660931,46738.0,46737.0,0.64618259]
[1641012224413,1.10103931,46738.0,46737.0,0.64618259]
[1641012225115,1.06207082,46738.0,46737.0,0.64618259]
[1641012225316,1.08287008,46738.0,46737.0,0.64618259]
[1641012226321,1.10103635,46738.0,46737.0,0.64618259]
[1641012226552,1.08023709,46738.0,46737.0,0.64618259]
[1641012227353,1.08023709,46738.0,46737.0,0.53921659]
[1641012227354,1.0998155,46738.0,46737.0,0.53921659]
[1641012227651,1.08164923,46738.0,46737.0,0.53921659]
[1641012228254,1.10147717,46738.0,46737.0,0.53921659]
[1641012228453,1.08189876,46738.0,46737.0,0.53921659]
[1641012229853,1.10226751,46738.0,46737.0,0.53921659]
[1641012230054,1.08243957,46738.0,46737.0,0.53921659]
[1641012230307,1.10253552,46738.0,46737.0,0.53921659]
[1641012230506,1.08216677,46738.0,46737.0,0.53921659]
[1641012231309,1.10238285,46738.0,46737.0,0.53921659]
[1641012231510,1.0822869,46738.0,46737.0,0.53921659]
[1641012232309,1.10220801,46738.0,46737.0,0.53921659]
[1641012232507,1.08199193,46738.0,46737.0,0.53921659]
[1641012233108,1.08199193,46738.0,46737.0,0.64192619]
[1641012233970,1.10012055,46738.0,46737.0,0.64192619]
[1641012234168,1.08019944,46738.0,46737.0,0.64192619]
[1641012234966,1.09905293,46738.0,46737.0,0.64192619]
[1641012235166,1.08092431,46738.0,46737.0,0.64192619]
[1641012235367,1.10028656,46738.0,46737.0,0.64192619]
[1641012235567,1.08143307,46738.0,46737.0,0.64192619]
[1641012236370,1.10327062,46738.0,46737.0,0.64192619]
[1641012236570,1.08390837,46738.0,46737.0,0.64192619]
[1641012237370,1.10307614,46738.0,46737.0,0.64192619]
[1641012237572,1.08123859,46738.0,46737.0,0.64192619]
[1641012238402,1.09986238,46738.0,46737.0,0.64192619]
[1641012238605,0.0084144,46740.0,46739.0,0.09457402]
[1641012238903,0.01,46744.0,46743.0,0.02005157]
[1641012239105,0.01,46744.0,46743.0,0.12798557]
[1641012239307,0.01,46744.0,46743.0,0.55798557]
[1641012239504,0.01,46744.0,46743.0,0.17798557]
[1641012239703,0.01861,46744.0,46743.0,0.96642952]
[1641012239902,0.01861,46744.0,46743.0,1.01990452]
[1641012240502,0.01861,46744.0,46743.0,1.00114452]
[1641012240903,0.01861,46744.0,46743.0,1.27980698]
[1641012246528,0.00861,46745.0,46743.0,2.41580698]
[1641012246728,0.00861,46745.0,46744.0,1.86287188]
[1641012246924,0.00861,46745.0,46744.0,1.93680188]
[1641012247125,0.00861,46745.0,46744.0,2.03680188]
[1641012247725,0.01722,46745.0,46744.0,2.03680188]
[1641012247926,0.01222,46745.0,46744.0,2.03680188]
[1641012249570,0.01222,46745.0,46744.0,2.03799531]
[1641012249769,0.00861,46745.0,46744.0,2.03799531]
[1641012249971,0.00861,46745.0,46744.0,2.08799531]
[1641012251570,0.00861,46745.0,46744.0,0.95199531]
[1641012251770,0.00861,46745.0,46744.0,2.01406531]
[1641012255405,0.00861,46745.0,46744.0,0.48916043]
[1641012256307,0.00861,46745.0,46744.0,0.77689402]
[1641012256569,0.00861,46745.0,46744.0,0.77814977]
[1641012257171,0.00861,46745.0,46744.0,1.91414977]
[1641012257968,0.00861,46746.0,46744.0,1.91414977]
[1641012258171,0.00861,46746.0,46745.0,0.39874405]
[1641012258472,0.00861,46746.0,46745.0,0.107929]
[1641012259274,0.01722,46746.0,46745.0,0.107929]
[1641012260075,0.01722,46746.0,46744.0,0.00119343]
[1641012260625,0.01722,46746.0,46745.0,0.338023]
[1641012263961,0.01222,46746.0,46745.0,0.338023]
[1641012266157,0.01222,46746.0,46745.0,0.438023]
[1641012266357,0.00861,46746.0,46745.0,0.438023]
[1641012268126,0.00861,46746.0,46745.0,0.338023]
[1641012269524,0.008609,46747.0,46745.0,0.338023]
[1641012269724,0.008609,46747.0,46744.0,0.00119343]
[1641012269924,0.00988722,46747.0,46744.0,0.00119343]
[1641012270326,0.31582558,46747.0,46744.0,0.00119343]
[1641012270726,0.61707447,46747.0,46744.0,0.00119343]
[1641012270927,0.67056747,46747.0,46744.0,0.00119343]
[1641012271126,0.67056747,46747.0,46738.0,0.01916777]
[1641012271127,0.101278,46745.0,46738.0,0.01916777]
[1641012271330,0.00120837,46739.0,46738.0,0.01916777]
[1641012271766,0.00095087,46739.0,46738.0,0.01916777]
[1641012271970,0.63189951,46739.0,46738.0,0.01916777]
[1641012272169,0.96992251,46739.0,46738.0,0.01916777]
[1641012272368,1.02342551,46739.0,46738.0,0.01916777]
[1641012272568,1.03203551,46739.0,46738.0,0.01916777]
[1641012272771,1.33354177,46739.0,46738.0,0.01916777]
[1641012272970,1.03235605,46739.0,46738.0,0.01916777]
[1641012273671,1.05206902,46739.0,46738.0,0.01916777]
[1641012274672,1.07331601,46739.0,46738.0,0.01916777]
[1641012274872,1.05360304,46739.0,46738.0,0.01916777]
[1641012275071,1.35361487,46739.0,46738.0,0.01916777]
[1641012275519,1.37485146,46739.0,46738.0,0.01916777]
[1641012276521,1.04790779,46739.0,46738.0,0.01916777]
[1641012276721,1.01527102,46739.0,46738.0,0.01916777]
[1641012276922,0.97278744,46739.0,46738.0,0.01916777]
[1641012277524,0.99087003,46739.0,46738.0,0.01916777]
[1641012277721,0.9700038,46739.0,46738.0,0.01916777]
[1641012278122,1.0235038,46739.0,46738.0,0.01916777]
[1641012278725,1.02453818,46739.0,46738.0,0.01916777]
[1641012279577,1.04639303,46739.0,46738.0,0.01916777]
[1641012279777,1.02727606,46739.0,46738.0,0.01916777]
[1641012280678,1.04923869,46739.0,46738.0,0.01916777]
[1641012280879,1.02738384,46739.0,46738.0,0.01916777]
[1641012281579,1.04607795,46739.0,46738.0,0.01916777]
[1641012281780,1.02411532,46739.0,46738.0,0.01916777]
[1641012282580,1.04560891,46739.0,46738.0,0.01916777]
[1641012282824,1.0269148,46739.0,46738.0,0.01916777]
[1641012283424,0.86304773,46739.0,46738.0,0.01916777]
[1641012283624,0.88121511,46739.0,46738.0,0.01916777]
[1641012283825,0.85972152,46739.0,46738.0,0.01916777]
[1641012284828,0.87778782,46739.0,46738.0,0.01916777]
[1641012285026,0.85962044,46739.0,46738.0,0.01916777]
[1641012285327,0.72347568,46739.0,46738.0,0.01916777]
[1641012285626,0.74197639,46739.0,46738.0,0.01916777]
[1641012285926,0.72391009,46739.0,46738.0,0.01916777]
[1641012286775,1.00982533,46739.0,46738.0,0.01916777]
[1641012287375,1.02997934,46739.0,46738.0,0.01916777]
[1641012287576,1.01147863,46739.0,46738.0,0.01916777]
[1641012287775,1.03026986,46739.0,46738.0,0.01916777]
[1641012287975,1.01011585,46739.0,46738.0,0.01916777]
[1641012288776,1.01059389,46739.0,46738.0,0.01916777]
[1641012290217,1.03110125,46739.0,46738.0,0.01916777]
[1641012291117,0.99132462,46739.0,46738.0,0.01916777]
[1641012291318,1.0130684,46739.0,46738.0,0.01916777]
[1641012291721,1.03318971,46739.0,46738.0,0.01916777]
[1641012291923,0.42120518,46739.0,46738.0,0.01916777]
[1641012292119,0.36675431,46739.0,46738.0,0.01916777]
[1641012292318,0.02873131,46739.0,46738.0,0.01916777]
[1641012292722,0.04732699,46739.0,46738.0,0.01916777]
[1641012292922,0.02720568,46739.0,46738.0,0.01916777]
[1641012293519,0.36522868,46739.0,46738.0,0.01916777]
[1641012293968,0.346633,46739.0,46738.0,0.01916777]
[1641012294764,0.36521744,46739.0,46738.0,0.01916777]
[1641012295764,0.38595795,46739.0,46738.0,0.01916777]
[1641012295962,0.36737351,46739.0,46738.0,0.01916777]
[1641012296763,0.04968207,46739.0,46738.0,0.01916777]
[1641012297564,0.00861,46739.0,46738.0,0.01916777]
[1641012300520,0.346633,46739.0,46738.0,0.01916777]
[1641012301767,0.36750679,46739.0,46738.0,0.01916777]
[1641012302169,0.63809207,46739.0,46738.0,0.01916777]
[1641012302966,0.74510407,46739.0,46738.0,0.01916777]
[1641012303366,0.76312495,46739.0,46738.0,0.01916777]
[1641012303669,0.74225116,46739.0,46738.0,0.01916777]
[1641012304069,0.84225116,46739.0,46738.0,0.01916777]
[1641012304267,0.57166588,46739.0,46738.0,0.01916777]
[1641012304468,0.59430175,46739.0,46738.0,0.01916777]
[1641012304670,0.49430175,46739.0,46738.0,0.01916777]
[1641012305070,0.38728975,46739.0,46738.0,0.01916777]
[1641012305326,0.34786427,46739.0,46738.0,0.01916777]
[1641012305526,0.36911427,46739.0,46738.0,0.01916777]
[1641012305728,0.02986,46739.0,46738.0,0.01916777]
[1641012305930,0.02669224,46739.0,46738.0,0.01916777]
[1641012306331,0.02669224,46739.0,46738.0,0.35719077]
[1641012306529,0.02669224,46739.0,46738.0,0.86383547]
[1641012307130,0.00861,46741.0,46738.0,0.91732547]
[1641012308027,0.00861,46741.0,46739.0,0.27849364]
[1641012308228,0.00861,46741.0,46740.0,0.107935]
[1641012309071,0.00861,46741.0,46740.0,0.39250302]
[1641012309268,0.00861,46741.0,46740.0,0.40379074]
[1641012309470,0.00861,46741.0,46740.0,0.50379074]
[1641012309871,0.00982675,46746.0,46740.0,0.50501722]
[1641012310072,0.01391496,46756.0,46743.0,0.053483]
[1641012310270,0.01391496,46756.0,46745.0,0.02509549]
[1641012310468,0.01391496,46756.0,46746.0,0.107914]
[1641012310669,0.00861,46750.0,46746.0,0.157914]
[1641012310869,0.00861,46750.0,46746.0,0.178844]
[1641012311069,0.00861,46750.0,46748.0,0.60178295]
[1641012311270,0.00861,46750.0,46748.0,0.98972895]
[1641012311468,0.00861,46750.0,46748.0,1.08972895]
[1641012312070,0.00861,46750.0,46748.0,0.487946]
[1641012312372,0.00695771,46756.0,46749.0,1.197906]
[1641012312572,0.00695771,46756.0,46752.0,0.28250605]
[1641012312832,0.01391809,46756.0,46754.0,0.053469]
[1641012313033,0.01391809,46756.0,46755.0,0.157885]
[1641012313334,0.01391809,46756.0,46755.0,0.43204289]
[1641012313532,0.01391809,46756.0,46755.0,0.96467625]
[1641012314835,0.00891809,46756.0,46755.0,0.97596397]
[1641012315236,0.00891809,46756.0,46755.0,0.44333061]
[1641012315432,0.00891809,46756.0,46755.0,0.33544561]
[1641012315633,0.00696038,46756.0,46755.0,0.33544561]
[1641012318079,0.00696038,46756.0,46755.0,0.67346861]
[1641012318580,0.00696038,46756.0,46755.0,0.77346861]
[1641012319380,0.00696038,46756.0,46755.0,1.19868381]
[1641012319582,0.00696038,46756.0,46755.0,1.10347279]
[1641012319779,0.00696038,46756.0,46755.0,0.82346861]
[1641012320422,0.002,46759.0,46755.0,1.24515558]
[1641012320622,0.002,46759.0,46758.0,0.00128131]
[1641012320821,0.002,46759.0,46758.0,1.24132525]
[1641012321019,0.002,46759.0,46758.0,0.78261297]
[1641012321423,0.002,46759.0,46758.0,2.58291888]
[1641012321819,0.01061,46759.0,46758.0,2.58291888]
[1641012322020,0.0002,46763.0,46759.0,1.257743]
[1641012322221,0.0002,46763.0,46761.0,0.39268566]
[1641012322424,0.0002,46763.0,46761.0,0.71882516]
[1641012322622,0.0002,46763.0,46761.0,1.95482516]
[1641012323324,0.04843295,46772.0,46762.0,1.257733]
[1641012323527,0.0003,46782.0,46769.0,0.00124761]
[1641012323723,0.0003,46782.0,46773.0,0.0012791]
[1641012323991,0.0003,46782.0,46766.0,0.85920235]
[1641012324181,0.0003,46782.0,46770.0,0.10129378]
[1641012324381,0.0003,46782.0,46771.0,0.107611]
[1641012324584,0.0003,46782.0,46773.0,0.29101508]
[1641012324781,0.0003,46782.0,46774.0,0.33797]
[1641012325185,0.0003,46782.0,46774.0,0.82092455]
[1641012325382,0.00891,46775.0,46774.0,0.82092455]
[1641012326284,0.00891,46775.0,46774.0,0.83221227]
[1641012326483,0.00891,46775.0,46774.0,0.73221227]
[1641012327922,0.00891,46775.0,46774.0,0.83221227]
[1641012328726,0.01752,46775.0,46774.0,0.83221227]
[1641012331985,0.01752,46775.0,46774.0,0.83227227]
[1641012335527,0.00891,46775.0,46774.0,0.83227227]
[1641012337029,0.01752,46775.0,46774.0,0.83227227]
[1641012337628,0.01752,46775.0,46774.0,1.43324397]
[1641012338230,0.01252,46775.0,46774.0,1.43324397]
[1641012339086,0.01252,46775.0,46774.0,0.83227227]
[1641012339683,0.01252,46775.0,46774.0,0.01134772]
[1641012341386,0.01252,46775.0,46774.0,0.34937072]
[1641012341585,0.01252,46775.0,46774.0,0.44937072]
[1641012348676,0.01226249,46775.0,46774.0,1.00937072]
[1641012348875,0.01226249,46775.0,46774.0,0.44937072]
[1641012349475,0.01226249,46775.0,46774.0,0.72321323]
[1641012349977,0.01226249,46775.0,46774.0,0.44937072]
[1641012354371,0.01226249,46775.0,46774.0,0.72118879]
[1641012355969,0.01226249,46775.0,46774.0,0.44937072]
[1641012359327,0.01226249,46775.0,46774.0,0.73018589]
[1641012360127,0.00881,46775.0,46774.0,1.88018589]
[1641012360328,0.00881,46775.0,46774.0,0.78018589]
[1641012360527,0.00881,46775.0,46774.0,0.83018589]
[1641012361328,0.00881,46775.0,46774.0,0.54937072]
[1641012361776,0.00881,46775.0,46774.0,0.88937072]
[1641012361977,0.00881,46775.0,46774.0,1.60192847]
[1641012362576,0.00881,46775.0,46774.0,1.26192847]
[1641012363681,0.00881,46775.0,46774.0,0.54937072]
[1641012364784,0.00881,46775.0,46774.0,0.86937072]
[1641012364979,0.00881,46775.0,46774.0,1.26327783]
[1641012365915,0.00881,46775.0,46774.0,0.54937072]
[1641012366717,0.00881,46775.0,46774.0,0.82254098]
[1641012367118,0.00881,46775.0,46774.0,0.54937072]
[1641012367917,0.00881,46775.0,46774.0,1.26339615]
[1641012369970,0.00881,46775.0,46774.0,0.54937072]
[1641012370370,0.00881,46775.0,46774.0,1.26339615]
[1641012372172,0.00881,46775.0,46774.0,0.54937072]
[1641012372372,0.00881,46775.0,46774.0,0.8242495]
[1641012372579,0.00881,46775.0,46774.0,0.54937072]
[1641012372814,0.00881,46775.0,46774.0,0.82492668]
[1641012373615,0.00881,46775.0,46774.0,2.87129055]
[1641012374415,0.00881,46775.0,46774.0,2.59573459]
[1641012375015,0.00881,46775.0,46774.0,1.76441722]
[1641012375419,0.00881,46775.0,46774.0,2.59712382]
[1641012376878,0.00881,46775.0,46774.0,1.38207732]
[1641012377079,0.00881,46775.0,46774.0,0.54937072]
[1641012377482,0.00881,46775.0,46774.0,1.26288742]
[1641012377983,0.00881,46775.0,46774.0,0.54937072]
[1641012383530,0.00881,46775.0,46774.0,0.86937072]
[1641012384182,0.00881,46775.0,46774.0,1.14259129]
[1641012384382,0.00881,46775.0,46774.0,2.35758622]
[1641012384780,0.00881,46775.0,46774.0,2.08436565]
[1641012384982,0.0002,46775.0,46774.0,2.08436565]
[1641012385880,0.003809,46775.0,46774.0,2.13780265]
[1641012387282,0.00891,46776.0,46775.0,1.15]
[1641012387482,0.00891,46776.0,46775.0,1.5404932]
[1641012387722,0.00891,46776.0,46775.0,3.6881141]
[1641012387920,0.01752,46776.0,46775.0,3.69940182]
[1641012388123,0.01752,46776.0,46775.0,2.86677585]
[1641012389825,0.01752,46776.0,46775.0,0.50178092]
[1641012390224,0.01752,46776.0,46775.0,0.21883372]
[1641012390426,0.01752,46776.0,46775.0,0.11883372]
[1641012390629,0.01752,46776.0,46775.0,0.82883372]
[1641012390831,0.01752,46776.0,46775.0,2.97661355]
[1641012391028,0.01752,46776.0,46775.0,0.92883372]
[1641012391230,0.01752,46776.0,46775.0,2.14381182]
[1641012391687,0.01737761,46776.0,46775.0,2.14381182]
[1641012392689,0.01737761,46776.0,46775.0,2.14387182]
[1641012393891,0.01737761,46776.0,46775.0,2.22865182]
[1641012394092,0.0003,46778.0,46776.0,1.15]
[1641012394292,0.0003,46778.0,46776.0,1.76695782]
[1641012394492,0.0003,46778.0,46776.0,1.91695782]
[1641012394693,0.0003,46778.0,46776.0,1.92824554]
[1641012394893,0.008889,46777.0,46776.0,3.14322364]
[1641012395093,0.017499,46777.0,46776.0,2.86427282]
[1641012396234,0.017499,46777.0,46776.0,3.69701325]
[1641012396436,0.017499,46777.0,46776.0,2.54701325]
[1641012398239,0.0003,46778.0,46776.0,1.71427282]
[1641012398441,0.0003,46778.0,46777.0,1.53312001]
[1641012398641,0.0003,46778.0,46777.0,2.84809811]
[1641012399076,0.0003,46778.0,46777.0,2.5725181]
[1641012399277,0.0003,46778.0,46777.0,1.4225181]
[1641012400076,0.0003,46778.0,46777.0,1.43380582]
[1641012400477,0.00891,46778.0,46777.0,1.43380582]
[1641012401479,1.15891,46778.0,46777.0,0.23148092]
[1641012401681,1.15891,46778.0,46767.0,0.213756]
[1641012401682,0.43,46771.0,46767.0,0.213756]
[1641012401878,0.00120405,46768.0,46756.0,0.02118173]
[1641012402081,0.00120405,46768.0,46764.0,0.0696366]
[1641012402082,0.00127117,46766.0,46764.0,0.0696366]
[1641012402278,0.00127117,46766.0,46764.0,3.66e-05]
[1641012402279,0.737841,46765.0,46764.0,3.66e-05]
[1641012402480,1.24367894,46765.0,46764.0,0.71561188]
[1641012402736,0.63650964,46765.0,46764.0,0.71557528]
[1641012402936,0.1,46765.0,46764.0,0.71557528]
[1641012403641,0.1,46765.0,46759.0,0.41295578]
[1641012403839,0.1071693,46760.0,46759.0,0.41295578]
[1641012404039,0.0971693,46760.0,46759.0,0.41295578]
[1641012404240,0.29274199,46760.0,46759.0,0.41295578]
[1641012404540,0.58130146,46760.0,46759.0,0.41295578]
[1641012405139,0.2915079,46760.0,46759.0,0.41295578]
[1641012405840,0.30961605,46760.0,46759.0,0.41295578]
[1641012406787,0.33116707,46760.0,46759.0,0.41295578]
[1641012406988,0.31305892,46760.0,46759.0,0.41295578]
[1641012407791,0.33143826,46760.0,46759.0,0.41295578]
[1641012407990,0.30988724,46760.0,46759.0,0.41295578]
[1641012408490,0.30988724,46760.0,46759.0,1.12853106]
[1641012408891,0.01837934,46760.0,46759.0,1.12853106]
[1641012409491,0.03900296,46760.0,46759.0,1.12853106]
[1641012409693,0.02062362,46760.0,46759.0,1.12853106]
[1641012410095,0.01108461,46769.0,46759.0,1.12853106]
[1641012410348,0.01108461,46769.0,46767.0,0.26993513]
[1641012410547,0.0971693,46768.0,46767.0,0.26993513]
[1641012412147,0.4350103,46768.0,46767.0,0.26993513]
[1641012412848,0.45611074,46768.0,46767.0,0.26993513]